bitfinex/quotes_SOLUSD_20241001
["timestamp","ask_amount","ask_price","bid_price","bid_amount"]
[1727764602216,6.3759,156.84,156.8,22.0646]
[1727764602398,0.8515217,156.85,156.8,22.0646]
[1727764602399,7.2271217,156.85,156.8,28.4421]
[1727764603003,7.2271217,156.85,156.8,41.01273917]
[1727764604724,1.59414962,156.84,156.8,28.4421]
[1727764605030,7.2271217,156.85,156.8,28.4421]
[1727764605414,0.8515217,156.85,156.81,13.84598036]
[1727764605616,0.8515217,156.85,156.81,18.94743917]
[1727764605930,0.8515217,156.85,156.81,20.22266601]
[1727764606714,0.8515217,156.85,156.81,18.94743917]
[1727764606911,2.44555472,156.85,156.81,18.94743917]
[1727764607211,0.8515217,156.85,156.82,7.65182641]
[1727764607612,0.8515217,156.85,156.82,6.3766]
[1727764609022,0.8515217,156.85,156.81,12.57063917]
[1727764609219,0.8515217,156.85,156.83,28.51133917]
[1727764609529,0.8515217,156.85,156.84,7.65091512]
[1727764609832,0.8515217,156.85,156.84,6.3759]
[1727764610212,0.8515217,156.85,156.83,22.3169]
[1727764610726,0.8515217,156.85,156.8,38.008]
[1727764610923,0.8515217,156.85,156.81,6.3767]
[1727764611125,0.8515217,156.85,156.82,6.3765]
[1727764612328,0.8515217,156.85,156.8,38.008]
[1727764612531,0.8515217,156.85,156.81,6.377]
[1727764613819,0.8515217,156.85,156.81,7.65222439]
[1727764614031,0.8515217,156.85,156.81,6.377]
[1727764614927,2.44555175,156.85,156.81,6.377]
[1727764615333,0.8515217,156.85,156.81,6.377]
[1727764616936,0.8515217,156.85,156.83,6.3762]
[1727764619424,0.8515217,156.85,156.82,15.941]
[1727764619739,0.8515217,156.85,156.82,22.3176]
[1727764625747,0.8515217,156.85,156.82,15.941]
[1727764626626,7.2270217,156.85,156.81,6.377]
[1727764626828,0.8515217,156.85,156.84,6.3759]
[1727764627449,0.8515217,156.85,156.84,7.65089655]
[1727764628240,0.8515217,156.85,156.84,6.3759]
[1727764631020,7.2270217,156.85,156.81,15.9421]
[1727764631339,7.2270217,156.85,156.78,15.9457]
[1727764631340,1.59408178,156.84,156.78,15.9457]
[1727764631734,7.96998178,156.84,156.79,6.3775]
[1727764632535,23.776884,156.84,156.8,6.3775]
[1727764632952,0.8515217,156.85,156.81,7.65251413]
[1727764633442,0.8515217,156.85,156.81,6.3771]
[1727764633648,0.8515217,156.85,156.82,6.3766]
[1727764633848,0.8515217,156.85,156.81,13.84584803]
[1727764634026,0.8515217,156.85,156.83,6.3762]
[1727764634426,0.8515217,156.85,156.83,12.57063917]
[1727764634651,0.8515217,156.85,156.84,7.65097109]
[1727764635653,0.8515217,156.85,156.84,6.3759]
[1727764644947,0.8515217,156.85,156.83,15.9406]
[1727764645142,0.8515217,156.85,156.84,6.3759]
[1727764646654,0.8515217,156.85,156.83,15.9406]
[1727764646655,0.8515217,156.85,156.83,22.3168]
[1727764647533,7.2270217,156.85,156.8,6.3774]
[1727764647742,0.8515217,156.85,156.81,6.3767]
[1727764648161,0.8515217,156.85,156.82,6.3766]
[1727764648360,0.8515217,156.85,156.83,7.65132706]
[1727764648543,0.8515217,156.85,156.83,6.3762]
[1727764650960,0.8515217,156.85,156.83,7.65131931]
[1727764651171,0.8515217,156.85,156.83,6.3762]
[1727764653359,0.8515217,156.85,156.83,3.3267783]
[1727764653568,0.8515217,156.85,156.82,9.7034783]
[1727764654268,0.8515217,156.85,156.83,3.3267783]
[1727764655041,0.8515217,156.85,156.82,6.3767]
[1727764655272,0.8515217,156.85,156.83,10.98093851]
[1727764655457,0.8515217,156.85,156.83,7.65121596]
[1727764656175,0.8515217,156.85,156.83,6.376]
[1727764656866,0.8515217,156.85,156.83,7.65106953]
[1727764657268,0.8515217,156.85,156.83,6.376]
[1727764658467,0.8515217,156.85,156.83,1.2750703]
[1727764658657,0.8515217,156.85,156.84,6.3759]
[1727764669173,0.8515217,156.85,156.82,12.57063917]
[1727764669376,0.8515217,156.85,156.83,6.3762]
[1727764669763,0.8515217,156.85,156.82,12.57063917]
[1727764670069,0.8515217,156.85,156.82,18.94723917]
[1727764670472,0.8515217,156.85,156.82,12.57063917]
[1727764670674,0.8515217,156.85,156.83,6.3762]
[1727764672172,0.8515217,156.85,156.83,7.65130507]
[1727764673682,0.8515217,156.85,156.82,12.57063917]
[1727764673976,0.8515217,156.85,156.84,6.3759]
[1727764674186,0.8515217,156.85,156.82,12.57063917]
[1727764674382,0.8515217,156.85,156.83,6.3762]
[1727764675779,0.8515217,156.85,156.83,7.65128635]
[1727764676176,0.8515217,156.85,156.81,15.942]
[1727764676177,0.8515217,156.85,156.81,22.3188]
[1727764676370,0.8515217,156.85,156.82,6.3767]
[1727764684366,1.59395064,156.84,156.77,6.60462489]
[1727764684566,1.59395064,156.84,156.78,15.9456]
[1727764684794,0.8515217,156.85,156.78,15.9456]
[1727764684977,0.8515217,156.85,156.77,6.60462489]
[1727764685171,23.776884,156.83,156.77,6.60462489]
[1727764685371,30.153184,156.83,156.78,6.3783]
[1727764685778,30.152784,156.84,156.79,6.3779]
[1727764687092,1.59442538,156.83,156.79,6.3779]
[1727764687386,7.97072538,156.83,156.79,6.3779]
[1727764687585,6.3767,156.82,156.77,28.92922489]
[1727764687889,1.5945134,156.81,156.77,28.92922489]
[1727764689082,6.3764,156.83,156.78,6.3782]
[1727764693198,1.59443386,156.82,156.78,6.3782]
[1727764694003,6.3764,156.83,156.78,6.3782]
[1727764694495,6.3764,156.83,156.77,22.55062489]
[1727764694801,6.3764,156.83,156.79,6.3779]
[1727764695600,40.591084,156.84,156.77,23.82616876]
[1727764695796,40.591084,156.84,156.8,6.3775]
[1727764695994,40.591084,156.84,156.79,6.3778]
[1727764697800,1.59437166,156.83,156.79,6.3778]
[1727764698003,40.591084,156.84,156.79,6.3778]
[1727764698684,34.215184,156.84,156.8,22.3205]
[1727764698881,40.591084,156.84,156.8,22.3205]
[1727764699089,40.591084,156.84,156.8,15.9431]
[1727764699803,34.215184,156.84,156.77,6.60462489]
[1727764699993,7.97069705,156.83,156.78,6.3782]
[1727764702012,7.97069705,156.83,156.79,6.3778]
[1727764702720,6.3763,156.83,156.79,6.3778]
[1727764704301,0.8515217,156.85,156.84,6.3759]
[1727764704796,0.8515217,156.85,156.83,6.3762]
[1727764710911,0.8515217,156.85,156.82,15.9411]
[1727764711223,0.8515217,156.85,156.82,22.3177]
[1727764711519,25.37088221,156.84,156.8,12.4838]
[1727764712223,25.37088221,156.84,156.79,32.4944]
[1727764712399,6.3763,156.83,156.79,15.9444]
[1727764712601,1.59435202,156.82,156.79,15.9444]
[1727764713005,6.3763,156.83,156.79,15.9444]
[1727764713205,6.3763,156.83,156.79,22.3222]
[1727764715107,30.152884,156.84,156.79,22.3222]
[1727764716527,6.3764,156.83,156.79,22.3222]
[1727764717103,7.97073104,156.83,156.79,22.3222]
[1727764718931,6.3764,156.83,156.79,22.3222]
[1727764719110,23.776884,156.84,156.79,22.3222]
[1727764719408,30.152784,156.84,156.79,22.3222]
[1727764719931,30.152784,156.84,156.8,3.2803658]
[1727764720228,30.152784,156.84,156.81,3.2803658]
[1727764720422,30.152784,156.84,156.82,3.2803658]
[1727764720620,30.152784,156.84,156.79,23.59766309]
[1727764720922,30.152784,156.84,156.8,3.27950194]
[1727764721121,30.152784,156.84,156.81,3.27950194]
[1727764721323,30.152784,156.84,156.82,3.27950194]
[1727764721627,30.152784,156.84,156.79,22.3222]
[1727764722318,23.776884,156.84,156.8,3.27942993]
[1727764722630,23.776884,156.84,156.81,9.65642993]
[1727764722824,23.776884,156.84,156.82,3.27942993]
[1727764723032,0.8515217,156.85,156.82,6.3766]
[1727764723323,0.8515217,156.85,156.83,9.65570815]
[1727764724105,0.8515217,156.85,156.82,18.94723917]
[1727764724309,0.8515217,156.85,156.83,3.27916258]
[1727764724616,0.8515217,156.85,156.82,18.94723917]
[1727764724617,0.8515217,156.85,156.82,6.3766]
[1727764724818,0.8515217,156.85,156.83,3.27900633]
[1727764725028,0.8515217,156.85,156.83,3.27902733]
[1727764725242,0.8515217,156.85,156.82,7.6518213]
[1727764725411,0.8515217,156.85,156.82,6.3766]
[1727764727416,0.8515217,156.85,156.82,7.65179622]
[1727764727616,0.8515217,156.85,156.82,6.3766]
[1727764730136,0.8515217,156.85,156.81,15.9422]
[1727764730322,0.8515217,156.85,156.81,22.3191]
[1727764730634,0.8515217,156.85,156.83,6.0824]
[1727764730940,0.8515217,156.85,156.84,12.57063917]
[1727764731115,0.8515217,156.85,156.84,6.3759]
[1727764731311,0.8515217,156.85,156.83,6.3762]
[1727764731518,0.8515217,156.85,156.81,15.9422]
[1727764731733,0.8515217,156.85,156.81,22.3192]
[1727764731935,2.44556197,156.85,156.81,22.3192]
[1727764732120,2.44556197,156.85,156.82,6.3766]
[1727764735233,2.44556197,156.85,156.81,22.3193]
[1727764735436,6.376,156.84,156.8,6.3774]
[1727764735742,1.59419233,156.83,156.8,6.3774]
[1727764735941,6.376,156.84,156.8,6.3774]
[1727764736140,2.44571227,156.85,156.79,6.0824]
[1727764736330,2.44571227,156.85,156.79,12.4603]
[1727764736331,6.3759,156.84,156.79,12.4603]
[1727764736722,6.3759,156.84,156.8,6.3774]
[1727764736918,7.2270217,156.85,156.8,7.65275137]
[1727764738557,7.2270217,156.85,156.8,6.3774]
[1727764738737,7.2270217,156.85,156.8,7.65274762]
[1727764738929,7.2270217,156.85,156.8,6.3774]
[1727764740545,7.2270217,156.85,156.8,7.65274882]
[1727764740955,7.2270217,156.85,156.8,6.3774]
[1727764743954,7.2270217,156.85,156.8,7.65274561]
[1727764744449,7.2270217,156.85,156.8,6.3774]
[1727764745050,7.2270217,156.85,156.8,7.65274479]
[1727764745548,7.2270217,156.85,156.8,6.3774]
[1727764746252,1.59418013,156.84,156.8,6.3774]
[1727764746545,7.2270217,156.85,156.8,7.65274435]
[1727764746930,6.3764,156.83,156.79,6.0824]
[1727764747126,1.59430403,156.82,156.79,6.0824]
[1727764749550,1.59430403,156.82,156.79,5.1266]
[1727764751753,1.59430403,156.82,156.79,11.5045]
[1727764752148,6.3764,156.83,156.79,11.5045]
[1727764752544,6.3764,156.83,156.79,6.3779]
[1727764752743,7.2271217,156.85,156.8,20.22353373]
[1727764752939,7.2271217,156.85,156.81,6.3771]
[1727764753847,7.2271217,156.85,156.8,18.94803917]
[1727764754748,1.59417375,156.84,156.8,6.3774]
[1727764755053,6.3763,156.83,156.78,22.3237]
[1727764755245,1.59432493,156.82,156.78,22.3237]
[1727764756460,6.3763,156.83,156.79,6.3779]
[1727764757657,6.3763,156.83,156.79,7.65334115]
[1727764758138,6.3763,156.83,156.79,6.3779]
[1727764758341,30.152784,156.84,156.79,6.3779]
[1727764758535,30.152784,156.84,156.79,7.6533397]
[1727764758736,30.152784,156.84,156.79,6.3779]
[1727764758947,30.152784,156.84,156.79,7.65334002]
[1727764759742,30.152784,156.84,156.79,6.3779]
[1727764760270,6.3763,156.83,156.79,6.3779]
[1727764760555,7.97060177,156.83,156.79,6.3779]
[1727764763557,6.3763,156.83,156.79,6.3779]
[1727764765039,6.3763,156.83,156.79,7.65333694]
[1727764765241,30.152784,156.84,156.79,7.65333694]
[1727764766371,30.152784,156.84,156.79,6.3779]
[1727764767068,30.152784,156.84,156.79,7.65333585]
[1727764767455,30.152784,156.84,156.79,6.3779]
[1727764768662,30.152784,156.84,156.79,7.65333681]
[1727764775774,30.152784,156.84,156.79,1.27543681]
[1727764775968,30.152784,156.84,156.8,6.3774]
[1727764776279,6.3759,156.84,156.8,6.3774]
[1727764777054,7.2271217,156.85,156.8,6.3774]
[1727764779561,1.59416338,156.84,156.8,6.3774]
[1727764783179,7.2271217,156.85,156.8,6.3774]
[1727764785977,6.3763,156.83,156.79,6.3778]
[1727764786860,7.97016234,156.84,156.79,6.3778]
[1727764787067,6.376,156.84,156.79,6.3778]
[1727764790591,6.376,156.84,156.8,1.27537438]
[1727764792491,6.376,156.84,156.79,6.3778]
[1727764800093,0.8515217,156.85,156.82,6.3767]
[1727764800991,0.8515217,156.85,156.83,1.27512076]
[1727764801783,0.8515217,156.85,156.83,7.65132076]
[1727764802184,0.8515217,156.85,156.83,6.3762]
[1727764802893,0.8515217,156.85,156.81,19.07023917]
[1727764803094,0.8515217,156.85,156.82,6.3766]
[1727764803393,6.3759,156.84,156.81,6.4996]
[1727764805305,0.8515217,156.85,156.77,51.0649043]
[1727764805306,6.377,156.82,156.77,28.92606513]
[1727764805626,1.59434884,156.81,156.77,6.60086513]
[1727764806101,6.3767,156.82,156.77,6.60086513]
[1727764806604,6.3767,156.82,156.77,12.97946513]
[1727764806804,6.376,156.84,156.78,1.275665]
[1727764807007,1.5943881,156.83,156.79,6.3778]
[1727764807312,6.376,156.84,156.77,6.60086513]
[1727764807480,6.376,156.84,156.79,6.3777]
[1727764807805,0.8515217,156.85,156.81,6.377]
[1727764808007,0.8515217,156.85,156.82,1.27535247]
[1727764808201,0.8515217,156.85,156.82,13.84599164]
[1727764808402,0.8515217,156.85,156.82,12.57063917]
[1727764808781,0.8515217,156.85,156.84,6.3759]
[1727764810597,0.8515217,156.85,156.84,18.94653917]
[1727764815299,0.8515217,156.85,156.84,6.3759]
[1727764816020,0.8515217,156.85,156.82,22.3174]
[1727764819611,0.8515217,156.85,156.81,21.8791]
[1727764819612,7.2270217,156.85,156.81,21.8791]
[1727764819819,7.2270217,156.85,156.8,6.3774]
[1727764820308,7.2270217,156.85,156.81,6.3771]
[1727764822101,7.2270217,156.85,156.79,15.9445]
[1727764822430,1.59409473,156.84,156.79,22.322]
[1727764825719,1.59409473,156.84,156.79,15.9445]
[1727764825920,1.59409473,156.84,156.8,6.3775]
[1727764828819,0.8515217,156.85,156.79,15.9445]
[1727764829023,0.8515217,156.85,156.77,28.29436513]
[1727764829340,1.59442674,156.84,156.77,13.22136513]
[1727764829838,7.97042674,156.84,156.78,6.3783]
[1727764830209,23.776884,156.83,156.77,13.22136513]
[1727764830419,1.59441179,156.82,156.8,6.3775]
[1727764831116,0.8515217,156.85,156.84,6.3759]
[1727764842037,0.8515217,156.85,156.83,6.3762]
[1727764843550,0.8515217,156.85,156.84,6.3759]
[1727764846853,0.8515217,156.85,156.83,6.3762]
[1727764856138,0.8515217,156.85,156.84,7.65103805]
[1727764856340,0.8515217,156.85,156.84,6.3759]
[1727764860272,0.8515217,156.85,156.82,6.3766]
[1727764862068,0.8515217,156.85,156.83,6.3763]
[1727764864168,0.8515217,156.85,156.84,1.27510349]
[1727764864671,0.8515217,156.85,156.83,6.3763]
[1727764865164,0.8515217,156.85,156.84,1.27508857]
[1727764865377,0.8515217,156.85,156.83,6.3763]
[1727764868878,0.8515217,156.85,156.81,15.9418]
[1727764869065,0.8515217,156.85,156.82,6.3766]
[1727764869270,0.8515217,156.85,156.82,7.65174993]
[1727764869660,0.8515217,156.85,156.82,6.3766]
[1727764870590,0.8515217,156.85,156.83,6.3761]
[1727764871169,0.8515217,156.85,156.82,6.3766]
[1727764871859,0.8515217,156.85,156.81,15.9418]
[1727764872154,1.59413177,156.84,156.81,15.9418]
[1727764872379,1.59413177,156.84,156.79,6.3778]
[1727764872682,0.8515217,156.85,156.8,1.27542556]
[1727764872884,0.8515217,156.85,156.81,6.377]
[1727764873260,0.8515217,156.85,156.78,49.78443917]
[1727764873456,1.59418052,156.84,156.78,49.78443917]
[1727764873661,1.59418052,156.84,156.81,6.377]
[1727764874582,0.8515217,156.85,156.82,6.3766]
[1727764877679,11.2898217,156.85,156.82,6.3766]
[1727764877879,6.3764,156.83,156.77,22.54686513]
[1727764878077,11.2898217,156.85,156.77,6.60086513]
[1727764878078,6.3774,156.81,156.77,6.60086513]
[1727764878265,1.5946811,156.82,156.73,31.9]
[1727764878266,1.59477761,156.8,156.76,6.3791]
[1727764878885,6.377,156.82,156.76,6.3791]
[1727764879082,11.2898217,156.85,156.77,1.27584259]
[1727764879285,11.2898217,156.85,156.79,12.57063917]
[1727764879470,0.8515217,156.85,156.82,6.3763]
[1727764886703,0.8515217,156.85,156.83,6.3762]
[1727764887588,0.8515217,156.85,156.84,7.6511091]
[1727764887768,0.8515217,156.85,156.84,6.3759]
[1727764888866,0.8515217,156.85,156.79,6.6584]
[1727764889379,0.8515217,156.85,156.81,22.3196]
[1727764891111,1.59412205,156.84,156.78,15.9458]
[1727764891395,7.97032205,156.84,156.78,22.3237]
[1727764892578,23.776884,156.83,156.78,22.3237]
[1727764893275,23.776884,156.83,156.78,15.9458]
[1727764893476,23.776884,156.83,156.79,6.3776]
[1727764893694,23.776884,156.81,156.74,22.5114]
[1727764893973,23.776884,156.79,156.75,6.3794]
[1727764894173,1.5946499,156.78,156.75,6.3794]
[1727764894396,1.5946499,156.78,156.74,15.9491]
[1727764894609,23.776884,156.77,156.74,15.9491]
[1727764894774,1.59486749,156.76,156.74,15.9491]
[1727764895202,1.59486749,156.76,156.7,6.5762]
[1727764895392,1.59486749,156.76,156.71,6.381]
[1727764895586,7.97406749,156.76,156.71,6.381]
[1727764896798,7.97406749,156.76,156.7,15.9531]
[1727764898082,23.776884,156.75,156.7,22.3345]
[1727764898277,7.97406749,156.76,156.7,22.3345]
[1727764898278,1.59514728,156.74,156.7,22.3345]
[1727764900006,23.776884,156.74,156.7,22.3345]
[1727764902613,10.4383,156.8,156.7,17.22924125]
[1727764902779,10.4383,156.8,156.74,6.3799]
[1727764902780,6.3779,156.79,156.74,6.3799]
[1727764904112,23.776884,156.78,156.73,6.3803]
[1727764904812,23.776884,156.78,156.73,7.65619348]
[1727764905103,23.776884,156.78,156.73,6.3803]
[1727764905308,23.776884,156.78,156.73,7.65619628]
[1727764905695,23.776884,156.78,156.73,6.3803]
[1727764906807,6.3784,156.78,156.73,6.3803]
[1727764907202,23.776884,156.77,156.73,6.3803]
[1727764907681,25.37175574,156.77,156.73,6.3803]
[1727764911400,23.776884,156.77,156.73,6.3803]
[1727764911927,25.37174959,156.77,156.73,6.3803]
[1727764912316,25.37174959,156.77,156.72,15.951]
[1727764912529,31.75054959,156.77,156.72,22.3314]
[1727764912824,31.75054959,156.77,156.69,16.6658]
[1727764912825,6.3795,156.75,156.7,6.3815]
[1727764913022,25.3720333,156.74,156.7,6.3815]
[1727764913905,23.776884,156.74,156.7,6.3815]
[1727764914802,30.156784,156.74,156.7,6.3815]
[1727764915200,30.156784,156.74,156.69,39.0025]
[1727764915403,1.59524488,156.73,156.69,39.0025]
[1727764915605,7.97564488,156.73,156.69,22.3367]
[1727764915826,6.3804,156.73,156.69,22.3367]
[1727764917427,23.776884,156.72,156.68,6.3824]
[1727764919628,7.97665401,156.71,156.66,28.6077]
[1727764921730,6.3813,156.71,156.66,28.6077]
[1727764922329,6.3813,156.71,156.66,22.2248]
[1727764922631,6.15650376,156.78,156.68,15.9553]
[1727764922632,6.38,156.74,156.68,15.9553]
[1727764922838,6.15650376,156.78,156.7,6.3813]
[1727764922839,6.3796,156.75,156.7,6.3813]
[1727764923005,6.15650376,156.78,156.69,6.3819]
[1727764923006,6.38,156.74,156.69,6.3819]
[1727764923202,6.38,156.74,156.69,7.65807777]
[1727764923632,6.38,156.74,156.69,7.65807688]
[1727764923802,6.38,156.74,156.69,6.3819]
[1727764924608,23.776884,156.73,156.69,6.3819]
[1727764925142,6.38,156.74,156.69,1.27617684]
[1727764925341,23.776884,156.74,156.7,6.3815]
[1727764926545,30.156884,156.74,156.7,6.3815]
[1727764927549,6.15650376,156.78,156.71,7.65724075]
[1727764927746,6.3788,156.77,156.72,6.3807]
[1727764928927,6.3788,156.77,156.73,1.27596898]
[1727764929129,26.3822,156.8,156.73,7.65626898]
[1727764929334,6.3784,156.78,156.73,7.65626898]
[1727764929927,6.3784,156.78,156.73,6.3803]
[1727764930129,6.3788,156.77,156.73,6.3803]
[1727764931660,6.3784,156.78,156.74,1.2758804]
[1727764931953,23.776884,156.81,156.74,7.6555804]
[1727764931954,6.3779,156.79,156.74,7.6555804]
[1727764932129,6.3784,156.78,156.74,7.6555804]
[1727764932744,6.3784,156.78,156.75,1.27578233]
[1727764933149,6.3771,156.81,156.76,7.65457211]
[1727764933531,6.3771,156.81,156.76,6.3788]
[1727764933731,10.4383,156.84,156.75,6.3794]
[1727764933732,6.3775,156.8,156.75,6.3794]
[1727764935240,6.378,156.79,156.75,6.3794]
[1727764935642,6.3776,156.8,156.75,6.3794]
[1727764936132,6.3776,156.8,156.76,7.65476776]
[1727764936534,6.3776,156.8,156.76,1.27566776]
[1727764938252,20.0,156.79,156.76,1.27566776]
[1727764939137,20.0,156.79,156.75,21.7036]
[1727764940376,20.0,156.79,156.76,1.27561968]
[1727764941442,20.0,156.79,156.75,21.7036]
[1727764942564,20.0,156.78,156.75,21.7036]
[1727764944262,20.0,156.78,156.76,1.27564454]
[1727764944458,20.0,156.78,156.75,21.7036]
[1727764947545,6.378,156.79,156.76,1.27564488]
[1727764947757,6.378,156.79,156.75,21.7036]
[1727764949149,6.378,156.79,156.76,1.27562195]
[1727764949464,6.3776,156.8,156.76,7.65462195]
[1727764950873,6.3772,156.81,156.77,6.3787]
[1727764951175,6.3772,156.81,156.78,1.27548204]
[1727764951474,6.3763,156.83,156.78,1.27548204]
[1727764951771,6.3763,156.83,156.78,6.3782]
[1727764951951,6.3759,156.84,156.79,7.65321968]
[1727764952152,6.3759,156.84,156.79,6.3779]
[1727764952745,6.3759,156.84,156.8,1.27523662]
[1727764953155,6.3759,156.84,156.79,6.3779]
[1727764953356,6.3759,156.84,156.8,16.84993303]
[1727764953553,7.2270217,156.85,156.8,21.9521]
[1727764954360,7.2270217,156.85,156.81,1.27517429]
[1727764954964,7.2270217,156.85,156.8,21.9521]
[1727764955682,6.376,156.84,156.8,21.9521]
[1727764955865,6.376,156.84,156.8,15.5747]
[1727764956274,0.8515217,156.85,156.8,15.5747]
[1727764956473,6.3763,156.83,156.8,15.5747]
[1727764958366,1.59414063,156.84,156.8,15.5747]
[1727764958569,6.3768,156.82,156.8,15.5747]
[1727764958883,6.3768,156.82,156.78,15.9452]
[1727764961481,0.8515217,156.85,156.77,6.3786]
[1727764961793,6.3772,156.81,156.77,6.3786]
[1727764968192,6.3772,156.81,156.76,21.7101]
[1727764968398,6.3772,156.81,156.76,28.0889]
[1727764971776,6.3767,156.83,156.77,7.65398835]
[1727764972002,23.776884,156.84,156.77,7.65398835]
[1727764972581,6.376,156.84,156.79,6.3779]
[1727764972779,7.2270217,156.85,156.8,7.65238526]
[1727764972979,0.8515217,156.85,156.8,7.65238526]
[1727764973180,6.376,156.84,156.8,6.3772]
[1727764974304,6.376,156.84,156.79,22.3221]
[1727764978214,6.376,156.84,156.8,1.27514101]
[1727764979288,6.376,156.84,156.79,22.3221]
[1727764979987,6.3767,156.83,156.79,15.9442]
[1727764980309,6.3768,156.82,156.77,6.3786]
[1727764981189,6.3768,156.82,156.78,1.2753308]
[1727764982099,6.3764,156.83,156.78,7.6534308]
[1727764982983,23.776884,156.84,156.78,7.6534308]
[1727764983208,6.3767,156.82,156.78,6.3781]
[1727764985111,6.3767,156.82,156.79,1.27529979]
[1727764985403,6.3767,156.82,156.78,6.3781]
[1727764986502,6.3767,156.82,156.77,6.3787]
[1727764990508,6.3786,156.78,156.73,22.3308]
[1727764993205,6.3788,156.77,156.73,22.3308]
[1727764993587,6.3792,156.76,156.72,22.6904]
[1727764994003,10.4383,156.8,156.7,22.3351]
[1727764994203,6.38,156.74,156.7,15.9536]
[1727764994515,23.776884,156.78,156.7,15.9536]
[1727764994691,6.3796,156.75,156.7,22.3351]
[1727764997015,6.3796,156.75,156.71,1.27590431]
[1727764997403,6.3796,156.75,156.7,22.3351]
[1727764999207,16.59480376,156.8,156.7,22.3351]
[1727764999208,6.3792,156.76,156.71,7.656705]
[1727764999518,6.3787,156.77,156.72,6.3806]
[1727764999816,6.3787,156.77,156.73,1.27579433]
[1727765000297,6.3787,156.77,156.72,6.3806]
[1727765000803,6.3792,156.76,156.72,6.3806]
[1727765004013,6.3792,156.76,156.7,15.9536]
[1727765004223,6.3792,156.76,156.71,6.3811]
[1727765005418,6.3799,156.75,156.7,15.9536]
[1727765007323,6.3799,156.75,156.7,22.3351]
[1727765010434,6.3799,156.75,156.71,1.27595365]
[1727765011115,6.3799,156.75,156.7,22.3351]
[1727765011624,6.3799,156.75,156.71,1.27595201]
[1727765012019,6.3799,156.75,156.71,7.65705201]
[1727765012723,6.3799,156.75,156.71,6.3811]
[1727765012924,6.3799,156.75,156.7,15.9536]
[1727765013125,23.776884,156.79,156.7,22.3351]
[1727765013327,6.3803,156.74,156.7,15.9536]
[1727765015440,6.3804,156.73,156.7,15.9536]
[1727765017119,6.3799,156.74,156.7,15.9536]
[1727765017817,6.3799,156.74,156.71,1.27603406]
[1727765018120,6.3799,156.74,156.7,15.9536]
[1727765018519,6.3804,156.73,156.7,15.9536]
[1727765018727,6.3804,156.73,156.69,6.3819]
[1727765019537,6.3808,156.72,156.68,28.3927]
[1727765019744,6.3808,156.72,156.68,22.0104]
[1727765020928,6.3808,156.72,156.69,1.27621741]
[1727765021939,6.3808,156.72,156.68,22.0104]
[1727765023038,23.776884,156.75,156.68,22.0104]
[1727765023227,23.776884,156.77,156.68,22.0104]
[1727765023228,6.3812,156.71,156.68,22.0104]
[1727765023942,6.3816,156.7,156.68,22.0104]
[1727765027254,23.776884,156.74,156.68,22.0104]
[1727765027438,6.3813,156.71,156.68,22.0104]
[1727765031439,1.59535126,156.75,156.68,22.0104]
[1727765031440,6.382,156.69,156.68,22.0104]
[1727765031742,6.382,156.69,156.65,6.3835]
[1727765032047,6.382,156.69,156.66,1.27641843]
[1727765032249,6.382,156.69,156.65,6.3835]
[1727765032829,6.382,156.69,156.64,44.5972]
[1727765034755,6.382,156.69,156.65,7.66001617]
[1727765035252,6.382,156.69,156.65,6.3836]
[1727765035847,23.776884,156.73,156.66,1.27641802]
[1727765036138,6.3812,156.71,156.66,7.65921802]
[1727765037043,6.3812,156.71,156.66,1.27641802]
[1727765037240,6.3808,156.72,156.67,6.3828]
[1727765037442,6.3808,156.72,156.68,1.27622262]
[1727765037636,6.3805,156.73,156.68,7.65842262]
[1727765037837,6.3796,156.75,156.7,6.3814]
[1727765038060,72.57946373,156.8,156.71,1.27600786]
[1727765038253,6.38,156.74,156.69,28.0048]
[1727765040743,6.38,156.74,156.7,1.27611846]
[1727765041862,6.38,156.74,156.69,28.0048]
[1727765043046,6.38,156.74,156.7,1.27611639]
[1727765043276,6.3795,156.76,156.7,7.65731639]
[1727765043579,30.156784,156.75,156.7,7.65731639]
[1727765043868,6.38,156.74,156.7,6.3812]